{"text_format":"2","workbook":"xlsx","n_sheets":1,"sheets":["Planilha de Quantidades"],"not_rendered":{"charts":0,"images":1,"macros":0,"external_links":0,"defined_names":1,"comments":0,"pivot_tables":0},"unopened":[],"bounds":{"document_bytes":16777216,"sheet_cells":100000,"run_cost":"one","rows_first":2000,"rows_last":500,"rows_between":2000,"halvings":0,"cell_chars":16384,"cell_head_chars":4096},"cells_cut":0,"cells_raw":0,"read":"whole","date_system":"1900"}

{"sheet":"Planilha de Quantidades","index":0,"n_rows":29,"n_cols":7,"rows_kept":29,"cut":false,"hidden":false,"merged":[[26,0,26,5],[3,0,3,6],[4,0,4,6],[5,0,5,6],[0,0,2,6]]}
[]
[]
[]
["ANEXO II"]
["PLANILHA DE QUANTIDADES, PREÇOS ORÇADOS E ESPECIFICAÇÕES TÉCNICAS"]
["LOCAL DE ENTREGA: BRASÍLIA/DF"]
["ITEM","CATMAT","DESCRIÇÃO","UNIDADE","QUANTIDADE MÁXIMA ANUAL","VALOR UNITÁRIO MÁXIMO (R$)","VALOR TOTAL (R$)"]
[1,611000,"Revista Codevasf - Impressão de Revista - Couchê Brilho -Form.Aberto 420 x 297 mm, Form. Fechado 210 x 297 mm, Capa, formato 420 x 297 mm em Couche Brilho LD 250 g/m2, 4x4 cores, Miolo 60 págs. em Couche Brilho LD 115 g/m2, 4x4 cores, Laminação BOPP Fosca F(Capa), Verniz UV Localizado F(Capa), Dobrado(Miolo), Alcear e Grampear, Prova Laser (Capa, Miolo).  A “boneca” ou prova de impressão do documento para aprovação da Codevasf deverá ser encaminhada para o endereço: SGAN 601, Conj. I. Ed. Dep. Manoel Novaes, CEP: 70830-019 - Brasília/DF.","unid.",2000,23.44,{"$f":"ROUND(E8*F8,2)","v":46880}]
[2,438854,"Plano de Comunicação Estratégica 2025 da Codevasf, Formato fechado 170 x 240 mm. Capa e contracapa – papel Couchê Fosco LD 230g, 4x0 cores, laminado com verniz bopp fosco na frente. Miolo – 40 páginas em papel Couchê fosco LD 115g, 1x1 cores, 5 páginas em papel Couchê fosco LD 115g, 4x0 cores e em encadernação com grampo. A “boneca” ou prova de impressão do documento para aprovação da Codevasf deverá ser encaminhada para o endereço: SGAN 601, Conj. I. Ed. Dep. Manoel Novaes, CEP: 70830-019 - Brasília/DF.","unid.",500,11.15,{"$f":"ROUND(E9*F9,2)","v":5575}]
[3,438854,"Manual de Criação de Peixes em Viveiros - Formato aberto 30,0 x 21,0 cm e fechado 15,0 x 21,0cm, com 136 (cento e trinta e seis) páginas, exceto capas. Capa – papel Couchê Fosco LD 230g, 4x4 cores, dobrado, laminado com verniz bopp fosco na frente.   Miolo – 136 (cento e trinta e seis) páginas em papel Couchê fosco LD 115g, 4x4 cores, dobrado, alceado, refilado, com verniz de máquina, brochura colada a quente. Processo CTP sem uso de fotolito.  A “boneca” ou prova de impressão do documento para aprovação da Codevasf deverá ser encaminhada para o endereço: SGAN 601, Conj. I. Ed. Dep. Manoel Novaes, CEP: 70830-019 - Brasília/DF.","unid.",2000,12.36,{"$f":"ROUND(E10*F10,2)","v":24720}]
[4,438854,"Manual de Criação de Peixes em Tanques rede - Formato aberto 30,0 x 21,0 cm e fechado 15,0 x 21,0cm, com 144 (cento e quarenta e quatro) páginas, exceto capas. Capa – papel Couchê Fosco LD 230g, 4x0 cores, dobrado, laminado com verniz bopp fosco na frente. Miolo – 144 (cento e quarenta e quatro) páginas em papel Couchê fosco LD 115g, 4x4 cores, dobrado, alceado, refilado, com verniz de máquina, brochura colada a quente. Processo CTP sem uso de fotolito.   A “boneca” ou prova de impressão do documento para aprovação da Codevasf deverá ser encaminhada para o endereço: SGAN 601, Conj. I. Ed. Dep. Manoel Novaes, CEP: 70830-019 - Brasília/DF.","unid.",2000,12.73,{"$f":"ROUND(E11*F11,2)","v":25460}]
[5,438854,"Manual de Criação de Caprinos e Ovinos -  Formato aberto 30,0 x 21,0 cm e fechado 15,0 x 21,0cm, com 144 (cento e quarenta e quatro) páginas, exceto capas. Capa – papel Couchê Fosco LD 230g, 4x0 cores, dobrado, laminado com verniz bopp fosco na frente. Miolo – 144 (cento e quarenta e quatro) páginas em papel Couchê fosco LD 115g, 4x4 cores, dobrado, alceado, refilado, com verniz de máquina, brochura colada a quente. Processo CTP sem uso de fotolito. A “boneca” ou prova de impressão do documento para aprovação da Codevasf deverá ser encaminhada para o endereço: SGAN 601, Conj. I. Ed. Dep. Manoel Novaes, CEP: 70830-019 - Brasília/DF.","unid.",2000,12.77,25540]
[6,250948,"Folder - material: papel couchê, tipo: liso com brilho, medida aberta: 22 x 24 cm, gramatura: 250 g,m2, tipo impressão: 4,4 cores, características adicionais: 1 dobra, impressão duas faces. características adicionais: conforme modelo do órgão. A “boneca” ou prova de impressão do documento para aprovação da Codevasf deverá ser encaminhada para o endereço: SGAN 601, Conj. I. Ed. Dep. Manoel Novaes, CEP: 70830-019 - Brasília/DF","unid.",7000,0.85,5950]
[7,412335,"Folder - material: papel couchê, tipo: liso com brilho, medida aberta: 44 x 24 cm, gramatura: 250 g,m2, tipo impressão: 4,4 cores, características adicionais: 2 dobras, impressão duas faces. características adicionais: conforme modelo do órgão.  A “boneca” ou prova de impressão do documento para aprovação da Codevasf deverá ser encaminhada para o endereço: SGAN 601, Conj. I. Ed. Dep. Manoel Novaes, CEP: 70830-019 - Brasília/DF.","unid.",7000,0.83,{"$f":"ROUND(E14*F14,2)","v":5810}]
[8,472776,"Calendário com base em papelão empastada com 13 lâminas no tamanho fechado 21,0 x 15,0 cm. 1 Revestimento base frente no tamanho aberto 21,0x41,0 cm em papel Couché Fosco 170 g/m² impressos à 4x0 cores. Acabamentos: Prova Laser, Laminação BOPP Fosco F, Corte/Vinco 13 Lâmina no tamanho 21,0x15,0 cm em papel Offset 240 g/m² impressos à 4x4 cores. Acabamentos: Prova Laser 1 Forro no tamanho aberto 21,0x41,0 cm em papel Couché Fosco 170 g/m² impressos à 4x0 cores. Acabamentos: Prova Laser, Laminação BOPP Fosco F 1 Papelão no tamanho aberto 21,0x41,0 cm em papel Papelão 1220 g/m². Finalizações: Alceamento, Colocação de Wire-ô Branco, Encaixotamento, Empastamento base em papelão aparente na lateral. Fotos fornecidas pelo contratante para arte que será fornecida pelo contratado.  A “boneca” ou prova de impressão do documento para aprovação da Codevasf deverá ser encaminhada para o endereço: SGAN 601, Conj. I. Ed. Dep. Manoel Novaes, CEP: 70830-019 - Brasília/DF.","unid.",3000,10.56,31680]
[9,447942,"Cadernos (Agenda) no tamanho fechado 14,5 x 20,5 cm Páginas:286. Revestimento capa no tamanho aberto 35,0x23,5 cm em papel Couché Fosco 150 g/m² impressos à 4x1 cores. Acabamentos: Prova Laser, Laminação BOPP Fosco F 1 Papelão no tamanho aberto 29,0x21,0 cm em papel Papelão 1220 g/m² impressos à 0x0 cores. Acabamentos: 1 Forro no tamanho 14,5x20,5 cm em papel Offset 180 g/m² impressos à 0x0 cores. Acabamentos: 6 Páginas abertura - no tamanho 14,5x20,5 cm em papel Couché Fosco 150 g/m² impressos à 4x4 cores. Acabamentos: Prova Laser 280 Páginas - 130 folhas pautadas - no tamanho 14,5x20,5 cm em papel Offset 90 g/m² impressos à 1x1 cores. Acabamentos: Prova Laser Finalizações: Capa dura para wire-o, Colocação de Wire-ô Branco, Encaixotamento. Fotos fornecidas pelo contratante para arte que será fornecida pelo contratado. A “boneca” ou prova de impressão do documento para aprovação da Codevasf deverá ser encaminhada para o endereço: SGAN 601, Conj. I. Ed. Dep. Manoel Novaes, CEP: 70830-019 - Brasília/DF.","unid.",3000,13.34,40020]
[10,608626,"Pasta com aba, papel 300g/m² impressos à 4x0 -  Laminação BOPP Fosco. Largura: 230mm Altura: 310mm. Uso pessoal para documento / eventos. Personalizados com a marca da Codevasf. A “boneca” ou prova de impressão do documento para aprovação da Codevasf deverá ser encaminhada para o endereço: SGAN 601, Conj. I. Ed. Dep. Manoel Novaes, CEP: 70830-019 - Brasília/DF.","unid.",2000,2.64,5280]
[11,609177,"Caderneta contendo 100 folhas, confeccionado em couro sintético ou ecológico. Personalizado em baixo relevo medindo fechado 90 x 140 mm. Certificação FCS. Personalizadas com a marca da Codevasf. Acompanha marcador de página e elásticos para fechar a cardeneta suporte para caneta. Acompanha caneta plástica com ponteira touch com impressão da logomarca da Codevasf. A “boneca” ou prova de impressão do documento para aprovação da Codevasf deverá ser encaminhada para o endereço: SGAN 601, Conj. I. Ed. Dep. Manoel Novaes, CEP: 70830-019 - Brasília/DF.","unid.",2000,19.97,39940]
[12,467044,"Bloco de anotações 25 folhas de miolo no papel offset 75g/m², formato A5 (13,5cm x 19,5cm), com capa com impressão 4/0,250 g/m2, arte fornecida e capa da logomarca do contratante, no miolo. Certificação FCS. A “boneca” ou prova de impressão do documento para aprovação da Codevasf deverá ser encaminhada para o endereço: SGAN 601, Conj. I. Ed. Dep. Manoel Novaes, CEP: 70830-019 - Brasília/DF.","unid.",2000,9.16,18320]
[13,458679,"Camisa em poliéster, tamanhos P/M/G personalizadas com a marca da Codevasf. A aprovação do material deverá ser realizada anteriormente a produção e deverá ser encaminhada para o endereço: SGAN 601, Conj. I. Ed. Dep. Manoel Novaes, CEP: 70830-019 - Brasília/DF.  ","unid.",2000,25.89,51780]
[14,607248,"Boné padrão americano, em (brim ou 100% Poliéster), com (silk colorido ou bordado) na parte frontal com a logomarca da Codevasf, com fecho regulador traseiro em metal. Tamanho único padrão adulto. Personalizadas com a marca da Codevasf. A aprovação do material deverá ser realizada anteriormente a produção e deverá ser encaminhada para o endereço: SGAN 601, Conj. I. Ed. Dep. Manoel Novaes, CEP: 70830-019 - Brasília/DF.","unid.",3000,17.5,52500]
[15,606268,"Chapéu modelo Australiano, com cordão de ajuste e proteção de pescoço, em brim, cor beje, (com silk colorido ou Bordado definir), na parte frontal com a logomarca da Codevasf, com botões laterais. Tamanho único padrão adulto. Personalizadas com a marca da Codevasf. A aprovação do material deverá ser realizada anteriormente a produção e deverá ser encaminhada para o endereço: SGAN 601, Conj. I. Ed. Dep. Manoel Novaes, CEP: 70830-019 - Brasília/DF.","unid.",1000,31.03,31030]
[16,303461,"Camiseta material: malha PV, tipo manga: curta com punho, tipo colarinho: gola polo, cor: azul, características adicionais: Personalizadas com a marca da Codevasf. A aprovação do material deverá ser realizada anteriormente a produção e deverá ser encaminhada para o endereço: SGAN 601, Conj. I. Ed. Dep. Manoel Novaes, CEP: 70830-019 - Brasília/DF.","unid.",1000,37.93,37930]
[17,440292,"Garrafa Tipo Squeeze,  Material: Alumínio, Capacidade: 500 ml; Aplicação de arte personalizada, com tampa roscável, A aprovação do material deverá ser realizada anteriormente a produção e deverá ser encaminhada para o endereço: SGAN 601, Conj. I. Ed. Dep. Manoel Novaes, CEP: 70830-019 - Brasília/DF.","unid.",2000,18.62,37240]
[18,466025,"Caneta plástica com ponteira touch com impressão da logomarca da Codevasf. A aprovação do material deverá ser realizada anteriormente a produção e deverá ser encaminhada para o endereço: SGAN 601, Conj. I. Ed. Dep. Manoel Novaes, CEP: 70830-019 - Brasília/DF.","unid.",2000,2.79,5580]
[19,466971,"Sacolas ecobag personalizadas com a marca da Codevasf Sacola: Algodão reciclado e poliéster (140 g/m²) com alças de 65 cm. 380 x 429 mm. A aprovação do material deverá ser realizada anteriormente a produção e deverá ser encaminhada para o endereço: SGAN 601, Conj. I. Ed. Dep. Manoel Novaes, CEP: 70830-019 - Brasília/DF.","unid.",1000,17.53,17530]
["VALOR TOTAL (R$)",{"$nulls":5},{"$f":"SUM(G8:G26)","v":508765}]
[]
[null,null,""]